[Event "2e tournoi de GMI du Barreau de Paris"]
[Site "Paris, France"]
[Date "2021.06.22"]
[Round "8.2"]
[White "Milliet, Sophie"]
[Black "Msellek, Ilyass"]
[Result "1-0"]
[TimeControl "90+30"]
[WhiteElo "2407"]
[BlackElo "2334"]

1. d4 {[%clk 01:30:57]} {[%emt 00:00:03]} Nf6 {[%clk 01:30:35]} {[%emt
00:00:25]} 2. c4 {[%clk 01:31:21]} {[%emt 00:00:06]} e6 {[%clk 01:30:17]}
{[%emt 00:00:48]} 3. Nf3 {[%clk 01:31:18]} {[%emt 00:00:33]} d5 {[%clk
01:30:27]} {[%emt 00:00:20]} 4. g3 {[%clk 01:31:42]} {[%emt 00:00:06]} Be7
{[%clk 01:30:29]} {[%emt 00:00:26]} 5. Bg2 {[%clk 01:32:05]} {[%emt 00:00:09]}
O-O {[%clk 01:30:41]} {[%emt 00:00:18]} 6. O-O {[%clk 01:32:31]} {[%emt
00:00:04]} c6 {[%clk 01:31:00]} {[%emt 00:00:11]} 7. Qc2 {[%clk 01:31:46]}
{[%emt 00:01:15]} b6 {[%clk 01:30:53]} {[%emt 00:00:38]} 8. Nbd2 {[%clk
01:28:52]} {[%emt 00:03:23]} c5 {[%clk 01:30:30]} {[%emt 00:00:53]} 9. dxc5
{[%clk 01:11:08]} {[%emt 00:18:14]} bxc5 {[%clk 01:30:29]} {[%emt 00:00:31]} 10.
b3 {[%clk 01:02:53]} {[%emt 00:08:45]} Nc6 {[%clk 01:29:48]} {[%emt 00:01:11]}
11. Bb2 {[%clk 01:02:39]} {[%emt 00:00:44]} Nb4 {[%clk 01:02:12]} {[%emt
00:28:07]} 12. Qb1 {[%clk 01:02:13]} {[%emt 00:00:57]} h6 {[%clk 00:53:50]}
{[%emt 00:08:51]} 13. Ne5 {[%clk 00:59:11]} {[%emt 00:03:32]} Bb7 {[%clk
00:52:54]} {[%emt 00:01:26]} 14. cxd5 {[%clk 00:48:33]} {[%emt 00:11:09]} exd5
{[%clk 00:52:59]} {[%emt 00:00:25]} 15. Nd3 {[%clk 00:47:38]} {[%emt 00:01:25]}
a5 {[%clk 00:35:50]} {[%emt 00:17:39]} 16. Nf4 {[%clk 00:44:35]} {[%emt
00:03:34]} Ra7 {[%clk 00:24:20]} {[%emt 00:12:00]} 17. a3 {[%clk 00:37:54]}
{[%emt 00:07:11]} Nc6 {[%clk 00:21:15]} {[%emt 00:03:35]} 18. Rd1 {[%clk
00:37:19]} {[%emt 00:01:05]} Ba6 {[%clk 00:09:49]} {[%emt 00:11:57]} 19. Nc4
{[%clk 00:29:18]} {[%emt 00:08:31]} Rd7 {[%clk 00:09:48]} {[%emt 00:00:30]} 20.
Ne3 {[%clk 00:29:11]} {[%emt 00:00:37]} Nd4 {[%clk 00:06:47]} {[%emt 00:03:31]}
21. Bxd4 {[%clk 00:26:58]} {[%emt 00:02:44]} cxd4 {[%clk 00:07:16]} {[%emt
00:00:01]} 22. Nf5 {[%clk 00:25:42]} {[%emt 00:01:46]} Bc5 {[%clk 00:07:23]}
{[%emt 00:00:23]} 23. b4 {[%clk 00:22:36]} {[%emt 00:03:36]} Rb7 {[%clk
00:07:39]} {[%emt 00:00:14]} 24. Qc2 {[%clk 00:21:59]} {[%emt 00:01:06]} Ba7
{[%clk 00:07:26]} {[%emt 00:00:44]} 25. Nxd4 {[%clk 00:20:41]} {[%emt
00:01:49]} Rc7 {[%clk 00:07:07]} {[%emt 00:00:48]} 26. Qa4 {[%clk 00:16:26]}
{[%emt 00:04:45]} Rc4 {[%clk 00:07:04]} {[%emt 00:00:33]} 27. e3 {[%clk
00:16:19]} {[%emt 00:00:38]} Bb6 {[%clk 00:06:37]} {[%emt 00:00:57]} 28. Nc6
{[%clk 00:13:58]} {[%emt 00:02:50]} Qe8 {[%clk 00:04:28]} {[%emt 00:02:40]} 29.
Nxd5 {[%clk 00:14:19]} {[%emt 00:00:10]} Nxd5 {[%clk 00:04:20]} {[%emt
00:00:38]} 30. Bxd5 {[%clk 00:14:47]} Rc3 {[%clk 00:04:50]} 31. b5 {[%clk
00:06:21]} {[%emt 00:08:57]} Bc8 {[%clk 00:05:12]} {[%emt 00:00:08]} 32. Rac1
{[%clk 00:06:06]} {[%emt 00:00:44]} Rxc1 {[%clk 00:04:31]} {[%emt 00:01:12]} 33.
Rxc1 {[%clk 00:06:35]} {[%emt 00:00:01]} Bf5 {[%clk 00:03:51]} {[%emt
00:01:09]} 34. Qf4 {[%clk 00:06:21]} {[%emt 00:00:44]} Bg6 {[%clk 00:03:19]}
{[%emt 00:01:03]} 35. Qd6 {[%clk 00:06:28]} {[%emt 00:00:22]} Kh7 {[%clk
00:03:33]} {[%emt 00:00:16]} 36. Ne5 {[%clk 00:05:35]} {[%emt 00:01:23]} Bd8
{[%clk 00:02:19]} {[%emt 00:01:44]} 37. Rc8 {[%clk 00:05:21]} {[%emt 00:00:44]}
Be7 {[%clk 00:00:33]} {[%emt 00:02:14]} 38. Rxe8 {[%clk 00:05:28]} {[%emt
00:00:24]} Bxd6 {[%clk 00:00:59]} {[%emt 00:00:05]} 39. Rxf8 {[%clk 00:05:34]}
{[%emt 00:00:24]} Bxf8 {[%clk 00:01:25]} {[%emt 00:00:03]} 40. b6 {[%clk
00:05:10]} {[%emt 00:00:56]} Bxa3 {[%clk 00:01:21]} {[%emt 00:00:34]} 41. b7
{[%clk 00:05:31]} {[%emt 00:00:09]} Bd6 {[%clk 00:01:47]} {[%emt 00:00:03]} 42.
Nc4 {[%clk 00:05:20]} {[%emt 00:00:41]} Bc7 {[%clk 00:02:01]} {[%emt 00:00:17]}
43. Nxa5 {[%clk 00:05:45]} {[%emt 00:00:06]} f6 {[%clk 00:02:10]} {[%emt
00:00:19]} 44. Nc6 {[%clk 00:06:08]} {[%emt 00:00:08]} Bd3 {[%clk 00:02:02]}
{[%emt 00:00:38]} 45. b8=Q {[%clk 00:06:28]} {[%emt 00:00:10]} Bxb8 {[%clk
00:02:25]} {[%emt 00:00:07]} 46. Nxb8 {[%clk 00:06:56]} {[%emt 00:00:02]} h5
{[%clk 00:02:45]} {[%emt 00:00:10]} 47. Nc6 {[%clk 00:07:06]} {[%emt 00:00:21]}
g5 {[%clk 00:03:05]} {[%emt 00:00:09]} 48. h4 {[%clk 00:07:24]} {[%emt
00:00:12]} g4 {[%clk 00:03:18]} {[%emt 00:00:17]} 49. Bf7 {[%clk 00:06:57]}
{[%emt 00:00:55]} Kh6 {[%clk 00:03:43]} {[%emt 00:00:07]} 50. Nd4 {[%clk
00:07:04]} {[%emt 00:00:23]} 1-0

[ePGN "0.1;DGT LiveChess/2.2.5"]

[Event "2e tournoi de GMI du Barreau de Paris"]
[Site "Paris, France"]
[Date "2021.06.23"]
[Round "9.4"]
[White "Bellahcene, Bilel"]
[Black "Milliet, Sophie"]
[Result "1/2-1/2"]
[TimeControl "90+30"]
[WhiteElo "2499"]
[BlackElo "2407"]

1. d4 {[%clk 01:09:54]} {[%emt 00:21:04]} Nf6 {[%clk 01:30:54]} {[%emt
00:00:06]} 2. c4 {[%clk 01:10:10]} {[%emt 00:00:15]} e6 {[%clk 01:31:17]}
{[%emt 00:00:08]} 3. Nf3 {[%clk 01:10:36]} {[%emt 00:00:03]} c5 {[%clk
01:31:29]} {[%emt 00:00:18]} 4. d5 {[%clk 01:10:57]} {[%emt 00:00:09]} d6
{[%clk 01:31:50]} {[%emt 00:00:09]} 5. Nc3 {[%clk 01:11:19]} {[%emt 00:00:07]}
exd5 {[%clk 01:32:10]} {[%emt 00:00:10]} 6. cxd5 {[%clk 01:11:45]} {[%emt
00:00:04]} g6 {[%clk 01:32:30]} {[%emt 00:00:10]} 7. Nd2 {[%clk 01:11:49]}
{[%emt 00:00:26]} Bg7 {[%clk 01:32:45]} {[%emt 00:00:16]} 8. e4 {[%clk
01:12:14]} {[%emt 00:00:04]} O-O {[%clk 01:33:00]} {[%emt 00:00:16]} 9. Be2
{[%clk 01:12:28]} {[%emt 00:00:15]} Re8 {[%clk 01:29:37]} {[%emt 00:03:54]} 10.
O-O {[%clk 01:12:43]} {[%emt 00:00:14]} a6 {[%clk 01:29:48]} {[%emt 00:00:20]}
11. a4 {[%clk 01:13:08]} {[%emt 00:00:05]} Nbd7 {[%clk 01:30:15]} {[%emt
00:00:02]} 12. h3 {[%clk 01:13:29]} {[%emt 00:00:08]} Rb8 {[%clk 01:27:52]}
{[%emt 00:02:54]} 13. Qc2 {[%clk 01:12:55]} {[%emt 00:01:03]} Qc7 {[%clk
01:23:17]} {[%emt 00:05:06]} 14. Re1 {[%clk 01:01:58]} {[%emt 00:11:25]} c4
{[%clk 01:18:50]} {[%emt 00:04:58]} 15. a5 {[%clk 00:52:03]} {[%emt 00:10:25]}
b5 {[%clk 01:18:02]} {[%emt 00:01:18]} 16. axb6 {[%clk 00:52:29]} {[%emt
00:00:04]} Nxb6 {[%clk 01:18:27]} {[%emt 00:00:05]} 17. Na4 {[%clk 00:52:46]}
{[%emt 00:00:13]} Bd7 {[%clk 01:07:47]} {[%emt 00:11:10]} 18. Nxb6 {[%clk
00:52:42]} {[%emt 00:00:35]} Rxb6 {[%clk 01:07:25]} {[%emt 00:00:52]} 19. Qxc4
{[%clk 00:51:07]} {[%emt 00:02:04]} Qb8 {[%clk 01:07:13]} {[%emt 00:00:42]} 20.
Rxa6 {[%clk 00:47:40]} {[%emt 00:03:57]} Rxa6 {[%clk 00:52:38]} {[%emt
00:15:07]} 21. Qxa6 {[%clk 00:48:01]} {[%emt 00:00:09]} Nxe4 {[%clk 00:52:55]}
{[%emt 00:00:13]} 22. Bf3 {[%clk 00:46:27]} {[%emt 00:02:03]} Bb5 {[%clk
00:44:05]} {[%emt 00:09:20]} 23. Qa5 {[%clk 00:44:03]} {[%emt 00:02:55]} Nxf2
{[%clk 00:39:43]} {[%emt 00:04:52]} 24. Nf1 {[%clk 00:44:29]} {[%emt 00:00:04]}
Rxe1 {[%clk 00:36:24]} {[%emt 00:03:49]} 25. Qxe1 {[%clk 00:44:57]} {[%emt
00:00:01]} Nd3 {[%clk 00:36:43]} {[%emt 00:00:10]} 26. Qd1 {[%clk 00:45:24]}
{[%emt 00:00:03]} Bd4+ {[%clk 00:31:47]} {[%emt 00:05:26]} 27. Be3 {[%clk
00:45:46]} {[%emt 00:00:09]} Bxe3+ {[%clk 00:31:22]} {[%emt 00:00:55]} 28. Nxe3
{[%clk 00:46:14]} {[%emt 00:00:01]} Qb6 {[%clk 00:30:48]} {[%emt 00:01:04]} 29.
Qd2 {[%clk 00:46:43]} {[%emt 00:00:01]} Nxb2 {[%clk 00:26:32]} {[%emt
00:04:46]} 30. Kh2 {[%clk 00:47:12]} Nc4 {[%clk 00:26:50]} {[%emt 00:00:13]} 31.
Nxc4 {[%clk 00:47:37]} {[%emt 00:00:04]} Bxc4 {[%clk 00:27:17]} {[%emt
00:00:03]} 32. h4 {[%clk 00:46:52]} {[%emt 00:01:14]} h5 {[%clk 00:21:07]}
{[%emt 00:06:41]} 33. Qg5 {[%clk 00:45:44]} {[%emt 00:01:38]} Qd4 {[%clk
00:08:30]} {[%emt 00:13:07]} 34. Bxh5 {[%clk 00:42:23]} {[%emt 00:03:51]} Qxd5
{[%clk 00:07:06]} {[%emt 00:01:54]} 35. Qxd5 {[%clk 00:36:59]} {[%emt
00:05:54]} Bxd5 {[%clk 00:07:32]} {[%emt 00:00:04]} 36. Bd1 {[%clk 00:37:26]}
{[%emt 00:00:03]} f5 {[%clk 00:05:35]} {[%emt 00:02:27]} 37. g4 {[%clk
00:35:55]} {[%emt 00:01:59]} fxg4 {[%clk 00:04:08]} {[%emt 00:01:58]} 38. Bxg4
{[%clk 00:36:21]} {[%emt 00:00:04]} Kg7 {[%clk 00:04:27]} {[%emt 00:00:11]} 39.
Kg3 {[%clk 00:36:44]} {[%emt 00:00:07]} Kf6 {[%clk 00:04:21]} {[%emt 00:00:36]}
40. Kf4 {[%clk 00:37:10]} {[%emt 00:00:03]} Bg2 {[%clk 00:02:46]} {[%emt
00:02:05]} 41. Bd7 {[%clk 00:35:42]} {[%emt 00:01:59]} Bd5 {[%clk 00:02:19]}
{[%emt 00:00:57]} 42. Bg4 {[%clk 00:32:23]} {[%emt 00:03:49]} Bf7 {[%clk
00:02:40]} {[%emt 00:00:09]} 43. Bf3 {[%clk 00:32:17]} {[%emt 00:00:36]} d5
{[%clk 00:02:00]} {[%emt 00:01:11]} 44. Be2 {[%clk 00:31:59]} {[%emt 00:00:48]}
Be6 {[%clk 00:01:58]} {[%emt 00:00:32]} 45. Bf3 {[%clk 00:32:18]} {[%emt
00:00:11]} Bf7 {[%clk 00:02:09]} {[%emt 00:00:18]} 46. Be2 {[%clk 00:32:42]}
{[%emt 00:00:06]} Be8 {[%clk 00:02:12]} {[%emt 00:00:27]} 47. Bf3 {[%clk
00:31:19]} {[%emt 00:01:53]} d4 {[%clk 00:00:38]} {[%emt 00:02:04]} 48. Be2
{[%clk 00:31:23]} {[%emt 00:00:26]} Bd7 {[%clk 00:00:41]} {[%emt 00:00:28]} 49.
Ke4 {[%clk 00:31:35]} {[%emt 00:00:16]} d3 {[%clk 00:00:55]} {[%emt 00:00:17]}
50. Kxd3 {[%clk 00:31:32]} {[%emt 00:00:32]} Bb5+ {[%clk 00:01:01]} {[%emt
00:00:24]} 51. Ke3 {[%clk 00:32:00]} {[%emt 00:00:02]} Bxe2 {[%clk 00:01:25]}
{[%emt 00:00:07]} 52. Kxe2 {[%clk 00:32:27]} {[%emt 00:00:02]} Kf5 {[%clk
00:01:45]} {[%emt 00:00:10]} 53. Kf3 {[%clk 00:32:54]} {[%emt 00:00:03]} g5
{[%clk 00:01:51]} {[%emt 00:00:25]} 54. hxg5 {[%clk 00:33:19]} {[%emt
00:00:04]} Kxg5 {[%clk 00:01:08]} {[%emt 00:00:03]} 1/2-1/2

[Event "2e tournoi de GMI du Barreau de Paris"]
[Site "Paris, France"]
[Date "2021.06.23"]
[Round "9.5"]
[White "Dardha, Daniel"]
[Black "Kevlishvili, Robby"]
[Result "1/2-1/2"]
[TimeControl "90+30"]
[WhiteElo "2503"]
[BlackElo "2499"]

1. Nf3 {[%clk 01:30:56]} {[%emt 00:00:03]} Nf6 {[%clk 01:30:51]} {[%emt
00:00:10]} 2. g3 {[%clk 01:31:09]} {[%emt 00:00:17]} g6 {[%clk 01:31:12]}
{[%emt 00:00:09]} 3. b3 {[%clk 01:31:22]} {[%emt 00:00:17]} Bg7 {[%clk
01:31:23]} {[%emt 00:00:19]} 4. Bb2 {[%clk 01:31:44]} {[%emt 00:00:08]} O-O
{[%clk 01:31:00]} {[%emt 00:00:53]} 5. Bg2 {[%clk 01:31:59]} {[%emt 00:00:15]}
c5 {[%clk 01:31:14]} {[%emt 00:00:16]} 6. O-O {[%clk 01:31:59]} {[%emt
00:00:30]} Nc6 {[%clk 01:31:33]} {[%emt 00:00:11]} 7. c4 {[%clk 01:31:56]}
{[%emt 00:00:34]} d6 {[%clk 01:31:40]} {[%emt 00:00:23]} 8. Nc3 {[%clk
01:30:59]} {[%emt 00:01:27]} Bd7 {[%clk 01:31:42]} {[%emt 00:00:27]} 9. d4
{[%clk 01:30:35]} {[%emt 00:00:54]} cxd4 {[%clk 01:32:06]} {[%emt 00:00:06]} 10.
Nxd4 {[%clk 01:31:02]} {[%emt 00:00:04]} Rc8 {[%clk 01:32:27]} {[%emt
00:00:10]} 1/2-1/2

[Event "2e tournoi de GMI du Barreau de Paris"]
[Site "Paris, France"]
[Date "2021.06.23"]
[Round "9.2"]
[White "Msellek, Ilyass"]
[Black "Feller, Sebastien"]
[Result "1/2-1/2"]
[TimeControl "90+30"]
[WhiteElo "2334"]
[BlackElo "2568"]

1. e4 {[%clk 01:30:58]} {[%emt 00:00:01]} c5 {[%clk 01:23:33]} {[%emt
00:07:28]} 2. Nf3 {[%clk 01:31:23]} {[%emt 00:00:05]} e6 {[%clk 01:23:57]}
{[%emt 00:00:06]} 3. d4 {[%clk 01:31:44]} {[%emt 00:00:09]} cxd4 {[%clk
01:24:22]} {[%emt 00:00:05]} 4. Nxd4 {[%clk 01:32:13]} {[%emt 00:00:01]} Nc6
{[%clk 01:24:42]} {[%emt 00:00:10]} 5. Nc3 {[%clk 01:32:39]} {[%emt 00:00:04]}
Qc7 {[%clk 01:25:08]} {[%emt 00:00:04]} 6. Qd3 {[%clk 01:33:03]} {[%emt
00:00:07]} Nf6 {[%clk 01:25:03]} {[%emt 00:00:35]} 7. Ndb5 {[%clk 01:32:30]}
{[%emt 00:01:03]} Qb8 {[%clk 01:24:31]} {[%emt 00:01:02]} 8. Qg3 {[%clk
01:32:08]} {[%emt 00:00:52]} d6 {[%clk 01:23:39]} {[%emt 00:01:22]} 9. Be3
{[%clk 01:29:03]} {[%emt 00:03:36]} a6 {[%clk 01:14:38]} {[%emt 00:09:32]} 10.
Nd4 {[%clk 01:28:36]} {[%emt 00:00:56]} Bd7 {[%clk 01:06:38]} {[%emt 00:08:31]}
11. O-O-O {[%clk 01:25:31]} {[%emt 00:03:35]} b5 {[%clk 01:03:10]} {[%emt
00:03:58]} 12. Bd3 {[%clk 01:22:10]} {[%emt 00:03:50]} Ne5 {[%clk 00:43:26]}
{[%emt 00:20:14]} 13. f4 {[%clk 01:17:23]} {[%emt 00:05:17]} Nxd3+ {[%clk
00:42:25]} {[%emt 00:01:31]} 14. cxd3 {[%clk 01:17:32]} {[%emt 00:00:20]} b4
{[%clk 00:42:45]} {[%emt 00:00:10]} 15. Nce2 {[%clk 01:17:25]} {[%emt
00:00:37]} h5 {[%clk 00:39:32]} {[%emt 00:03:43]} 16. Kb1 {[%clk 01:12:46]}
{[%emt 00:05:10]} h4 {[%clk 00:28:21]} {[%emt 00:11:40]} 17. Qf3 {[%clk
01:11:06]} {[%emt 00:02:10]} Qb7 {[%clk 00:23:33]} {[%emt 00:05:19]} 18. Rc1
{[%clk 01:02:05]} {[%emt 00:09:31]} Rh5 {[%clk 00:14:15]} {[%emt 00:09:48]} 19.
g4 {[%clk 00:54:05]} {[%emt 00:08:30]} hxg3 {[%clk 00:14:39]} {[%emt 00:00:06]}
20. hxg3 {[%clk 00:52:12]} {[%emt 00:02:23]} Rxh1 {[%clk 00:14:16]} {[%emt
00:00:53]} 21. Rxh1 {[%clk 00:47:51]} {[%emt 00:04:50]} O-O-O {[%clk 00:07:10]}
{[%emt 00:07:36]} 22. Rc1+ {[%clk 00:45:48]} {[%emt 00:02:34]} Kb8 {[%clk
00:07:39]} 23. Bg1 {[%clk 00:46:04]} {[%emt 00:00:14]} Rc8 {[%clk 00:05:20]}
{[%emt 00:02:48]} 24. Rxc8+ {[%clk 00:43:05]} {[%emt 00:03:30]} Bxc8 {[%clk
00:05:39]} {[%emt 00:00:11]} 25. Nb3 {[%clk 00:42:47]} {[%emt 00:00:47]} Qc7
{[%clk 00:02:16]} {[%emt 00:03:52]} 26. Qe3 {[%clk 00:38:26]} {[%emt 00:04:51]}
a5 {[%clk 00:01:41]} {[%emt 00:01:06]} 27. Qb6+ {[%clk 00:32:21]} {[%emt
00:06:35]} Qxb6 {[%clk 00:02:09]} {[%emt 00:00:02]} 28. Bxb6 {[%clk 00:32:43]}
{[%emt 00:00:07]} Ba6 {[%clk 00:01:40]} {[%emt 00:00:59]} 29. Kc2 {[%clk
00:30:34]} {[%emt 00:02:39]} a4 {[%clk 00:02:09]} {[%emt 00:00:01]} 30. Nbd4
{[%clk 00:30:50]} {[%emt 00:00:15]} Kb7 {[%clk 00:01:10]} {[%emt 00:01:29]} 31.
Ba5 {[%clk 00:30:28]} {[%emt 00:00:51]} d5 {[%clk 00:01:38]} {[%emt 00:00:02]}
32. e5 {[%clk 00:30:23]} {[%emt 00:00:34]} Ng4 {[%clk 00:02:00]} {[%emt
00:00:09]} 33. Kd2 {[%clk 00:29:51]} {[%emt 00:01:02]} g5 {[%clk 00:00:41]}
{[%emt 00:01:49]} 34. Nc2 {[%clk 00:26:57]} {[%emt 00:03:24]} gxf4 {[%clk
00:01:08]} {[%emt 00:00:03]} 35. gxf4 {[%clk 00:27:20]} {[%emt 00:00:07]} Bh6
{[%clk 00:01:14]} {[%emt 00:00:25]} 36. Nxb4 {[%clk 00:22:46]} {[%emt
00:05:04]} Nxe5 {[%clk 00:01:42]} {[%emt 00:00:02]} 37. Nxa6 {[%clk 00:23:09]}
{[%emt 00:00:06]} Kxa6 {[%clk 00:02:09]} {[%emt 00:00:04]} 38. Bc7 {[%clk
00:19:53]} {[%emt 00:03:45]} Nc6 {[%clk 00:01:00]} {[%emt 00:01:40]} 39. Kc3
{[%clk 00:19:27]} {[%emt 00:00:55]} Bg7+ {[%clk 00:01:15]} {[%emt 00:00:14]} 40.
d4 {[%clk 00:19:20]} {[%emt 00:00:37]} Kb5 {[%clk 00:00:58]} {[%emt 00:00:47]}
41. Bd6 {[%clk 00:18:40]} {[%emt 00:01:10]} Bf6 {[%clk 00:00:49]} {[%emt
00:00:36]} 42. Kd3 {[%clk 00:17:08]} {[%emt 00:02:05]} Nb4+ {[%clk 00:00:44]}
{[%emt 00:00:35]} 43. Bxb4 {[%clk 00:17:26]} {[%emt 00:00:13]} Kxb4 {[%clk
00:01:13]} {[%emt 00:00:01]} 44. f5 {[%clk 00:16:38]} {[%emt 00:01:18]} e5
{[%clk 00:00:55]} {[%emt 00:00:48]} 45. dxe5 {[%clk 00:16:50]} {[%emt
00:00:18]} Bxe5 {[%clk 00:01:22]} {[%emt 00:00:02]} 46. Nd4 {[%clk 00:16:49]}
{[%emt 00:00:32]} Bf6 {[%clk 00:00:41]} {[%emt 00:01:11]} 47. Nc2+ {[%clk
00:14:53]} {[%emt 00:02:26]} Kc5 {[%clk 00:01:10]} {[%emt 00:00:01]} 48. b3
{[%clk 00:15:15]} {[%emt 00:00:08]} axb3 {[%clk 00:01:36]} {[%emt 00:00:04]} 49.
axb3 {[%clk 00:15:42]} {[%emt 00:00:03]} Kd6 {[%clk 00:01:43]} {[%emt
00:00:22]} 50. b4 {[%clk 00:15:20]} {[%emt 00:00:52]} Bd8 {[%clk 00:01:49]}
{[%emt 00:00:24]} 51. Nd4 {[%clk 00:12:54]} {[%emt 00:02:56]} Bb6 {[%clk
00:02:12]} {[%emt 00:00:06]} 52. Nb5+ {[%clk 00:13:11]} {[%emt 00:00:14]} Ke5
{[%clk 00:01:52]} {[%emt 00:00:50]} 53. Nc3 {[%clk 00:13:37]} {[%emt 00:00:04]}
f6 {[%clk 00:00:45]} {[%emt 00:01:37]} 54. Na4 {[%clk 00:13:41]} {[%emt
00:00:26]} Bf2 {[%clk 00:00:40]} {[%emt 00:00:35]} 55. Nc3 {[%clk 00:13:09]}
{[%emt 00:01:02]} Be1 {[%clk 00:00:46]} {[%emt 00:00:24]} 56. b5 {[%clk
00:09:28]} {[%emt 00:04:11]} Bf2 {[%clk 00:01:14]} {[%emt 00:00:02]} 57. Nd1
{[%clk 00:07:18]} {[%emt 00:02:40]} Bg1 {[%clk 00:00:43]} {[%emt 00:01:00]} 58.
Ne3 {[%clk 00:05:56]} {[%emt 00:01:52]} Kd6 {[%clk 00:00:39]} {[%emt 00:00:34]}
59. Ng4 {[%clk 00:06:14]} {[%emt 00:00:12]} Ke7 {[%clk 00:00:52]} {[%emt
00:00:17]} 60. Ne3 {[%clk 00:06:35]} {[%emt 00:00:09]} Kd6 {[%clk 00:01:17]}
{[%emt 00:00:06]} 61. Ng4 {[%clk 00:07:01]} {[%emt 00:00:04]} Ke7 {[%clk
00:01:41]} {[%emt 00:00:05]} 62. Ke4 {[%emt 00:00:07]} 1/2-1/2

[Event "2e tournoi de GMI du Barreau de Paris"]
[Site "Paris, France"]
[Date "2021.06.23"]
[Round "9.1"]
[White "David, Alberto"]
[Black "Fedorchuk, Sergey A."]
[Result "1/2-1/2"]
[TimeControl "90+30"]
[WhiteElo "2527"]
[BlackElo "2616"]

1. Nf3 {[%clk 01:30:53]} {[%emt 00:00:05]} Nf6 {[%clk 01:30:31]} {[%emt
00:00:27]} 2. c4 {[%clk 01:31:15]} {[%emt 00:00:12]} b6 {[%clk 01:30:45]}
{[%emt 00:00:16]} 3. g3 {[%clk 01:31:23]} {[%emt 00:00:21]} c5 {[%clk
01:30:54]} {[%emt 00:00:20]} 4. Bg2 {[%clk 01:31:46]} {[%emt 00:00:08]} Bb7
{[%clk 01:31:16]} {[%emt 00:00:07]} 5. O-O {[%clk 01:32:07]} {[%emt 00:00:09]}
g6 {[%clk 01:31:40]} {[%emt 00:00:06]} 6. d4 {[%clk 01:32:14]} {[%emt
00:00:23]} cxd4 {[%clk 01:31:57]} {[%emt 00:00:12]} 7. Qxd4 {[%clk 01:32:38]}
{[%emt 00:00:06]} Bg7 {[%clk 01:32:10]} {[%emt 00:00:16]} 8. Nc3 {[%clk
01:32:57]} {[%emt 00:00:13]} d6 {[%clk 01:32:02]} {[%emt 00:00:36]} 9. b3
{[%clk 01:30:41]} {[%emt 00:02:47]} Nbd7 {[%clk 01:29:27]} {[%emt 00:03:05]} 10.
Bb2 {[%clk 01:31:04]} {[%emt 00:00:07]} O-O {[%clk 01:29:48]} {[%emt 00:00:09]}
11. Qd2 {[%clk 01:27:57]} {[%emt 00:03:37]} Rc8 {[%clk 01:25:24]} {[%emt
00:04:54]} 12. Rad1 {[%clk 01:27:20]} {[%emt 00:01:08]} Rc5 {[%clk 01:23:49]}
{[%emt 00:02:05]} 13. Ne1 {[%clk 01:26:33]} {[%emt 00:01:16]} Bxg2 {[%clk
01:23:52]} {[%emt 00:00:27]} 14. Nxg2 {[%clk 01:26:21]} {[%emt 00:00:42]} a6
{[%clk 01:22:30]} {[%emt 00:01:52]} 15. a4 {[%clk 01:26:22]} {[%emt 00:00:28]}
Rc8 {[%clk 01:21:23]} {[%emt 00:01:37]} 16. Ne3 {[%clk 01:25:38]} {[%emt
00:01:15]} Re8 {[%clk 01:19:48]} {[%emt 00:02:05]} 17. Ncd5 {[%clk 01:22:46]}
{[%emt 00:03:22]} Nxd5 {[%clk 01:19:37]} {[%emt 00:00:41]} 18. Nxd5 {[%clk
01:23:08]} {[%emt 00:00:08]} Bxb2 {[%clk 01:19:31]} {[%emt 00:00:36]} 19. Qxb2
{[%clk 01:23:32]} {[%emt 00:00:06]} b5 {[%clk 01:19:01]} {[%emt 00:01:00]} 20.
axb5 {[%clk 01:21:48]} {[%emt 00:02:14]} 1/2-1/2